{"text_format":"3","workbook":"xlsx","n_sheets":3,"sheets":["Лист1","Лист2","Лист3"],"read":"whole","date_system":"1900"}

{"sheet":"Лист1","index":0,"n_rows":65,"n_cols":16,"rows_kept":65,"merged":[[0,1,0,12],[1,0,4,0],[1,1,4,1],[1,2,1,5],[1,7,4,7],[1,8,4,8],[1,9,4,9],[1,10,4,10],[1,11,4,11],[1,12,4,12],[1,13,4,13],[1,14,4,14],[1,15,4,15],[2,2,2,3],[2,4,2,5],[3,2,4,2],[3,3,4,3],[3,4,4,4],[3,5,4,5]]}
[null,"Горячее питание. Паспортизация школ"]
[null,"Фактический адрес пищеблока","Количество обучающихся, обеспеченных горячим питанием, (чел.)",{"$nulls":4},"Форма организации питания в школе (самостоятельная организация питания/аутсорсинг (КШП)","Тип пищеблока для КШП: сырьевые/доготовочные/буфетно-раздаточные (при выборе самостоятельного питания столбец остается пустым)","Наименование организации, осуществляющей аутсорсинг (КШП) (при выборе самостоятельного питания столбец остается пустым)","ИНН организации, осуществляющей аутсорсинг (КШП) (при выборе самостоятельного питания столбец остается пустым)","Минимальное количество работников предприятия общественного питания по СанПиН 1.2.3685-21, чел.","Количество штатных едениц предприятия общественного питания по шатному расписанию, (ед.)","Количество занятых штатных единиц преприятия общественного питания, (ед.)","Фактического количество работников предприятия общественного питания, чел.","Примечания"]
[null,null,"1-4 класс",null,"5-11 класс"]
[null,null,"одноразовое питание","двухразовое питание","одноразовое питание","двухразовое питание"]
[]
[null,1,2,3,4,5,null,6,7,8,9,10,11,12,13,14]
["МБОУ \"СОШ №1\" НМР РТ","423570, РТ, г. Нижнекамск, ул. Строителей, д. 9",0,185,257,33,{"$f":"E7+F7","v":290},"аутсорсинг ","Доготовочное","\"АБК-Пэйммент\"",1660238322,null,4,4,4]
["МБОУ \"СОШ №2\" НМР РТ","423575, РТ, г. Нижнекамск, ул. Юности, д. 4",0,284,381,36,{"$f":"E8+F8","v":417},"аутсорсинг ","Доготовочное","\"АБК-Пэйммент\"",1660238322,null,5,5,5]
["МБОУ \"Лицей №3 имени А.С. Пушкина\" НМР РТ","423577, РТ, г. Нижнекамск, ул. Школьный бульвар, д. 2",0,341,438,27,465,"аутсорсинг ","Доготовочное","\"АБК-Пэйммент\"",1660238322,null,5,4,4]
["МБОУ \"СОШ №6\" НМР РТ","423576, РФ, РТ, г. Нижнекамск,  ул. Тукая, д. 15А",0,257,276,54,330,"аутсорсинг ","Доготовочное","\"АБК-Пэйммент\"",1660238322,null,5,4,4]
["МБОУ \"СОШ №7\" НМР РТ","423570, РТ, г.Нижнекамск, ул.Бызова, 18Б ",0,351,425,38,463,"аутсорсинг ","Доготовочное","\"АБК-Пэйммент\"",1660238322,null,5,5,5]
["МБОУ \"СОШ №8\" НМР РТ","423578, РТ, г. Нижнекамск, ул. Юности, д 14В ",0,303,412,29,441,"аутсорсинг ","Доготовочное","\"АБК-Пэйммент\"",1660238322,null,5,5,5]
["МБОУ \"СОШ № 9\" НМР РТ","423577, РТ, г.Нижнекамск, ул.Спортивная, д.13Б",0,269,270,29,299,"аутсорсинг ","Доготовочное","\"АБК-Пэйммент\"",1660238322,null,5,4,4]
["МБОУ \"СОШ № 10\" НМР РТ","423570,РТ, г. Нижнекамск, ул. Чулман, д.18",152,216,572,21,593,"аутсорсинг ","Доготовочное","\"АБК-Пэйммент\"",1660238322,null,7,6,6]
["МБОУ \"СОШ №11\" НМР РТ","423570, РТ, г.Нижнекамс, ул.Гагарина, д 1В  ",0,275,375,28,403,"аутсорсинг ","Доготовочное","\"АБК-Пэйммент\"",1660238322,null,5,5,5]
["МБОУ \"СОШ № 12\" НМР РТ","423570, РТ, г. Нижнекамск, ул. Спортивная, д. 21А",0,134,220,25,245,"аутсорсинг ","Доготовочное","\"АБК-Пэйммент\"",1660238322,null,4,3,3]
["МБОУ \"Гимназия-интернат №13\" НМР РТ","423582, РТ, г.Нижнекамск, ул. Кайманова, д.7",0,107,74,107,181,"аутсорсинг ","Доготовочное","\"АБК-Пэйммент\"",1660238322,null,6,5,5]
["МБОУ «Лицей №14» НМР РТ"," 423578, г. Нижнекамск, ул. Юности, д. 34",0,365,667,30,697,"аутсорсинг ","Доготовочное","\"АБК-Пэйммент\"",1660238322,null,7,6,6]
["МБОУ \"СОШ № 15\" НМР РТ","423582, Республика Татарстан, г. Нижнекамск, ул. Кайманова, д.4",0,341,440,54,494,"аутсорсинг ","Доготовочное","\"АБК-Пэйммент\"",1660238322,null,6,5,5]
["МБОУ \"СОШ №16\" НМР РТ","423570, РТ, г.Нижнекамс, пр. Вахитова, д. 2А ",0,257,338,36,374,"аутсорсинг ","Доготовочное","\"АБК-Пэйммент\"",1660238322,null,5,4,4]
["МБОУ \"СОШ №19\" НМР РТ","423575, Татарстан, г.Нижнекамск, пр.Химиков, дом 8б, ",0,392,439,34,473,"аутсорсинг ","Доготовочное","\"АБК-Пэйммент\"",1660238322,null,5,4,4]
["МБОУ \"СОШ №20\" НМР РТ","423582, Татарстан, г. Нижнекамск, ул. Гагарина, д.42",0,127,125,30,155,"аутсорсинг ","Доготовочное","\"АБК-Пэйммент\"",1660238322,null,3,3,3]
["МБОУ \"СОШ № 21\" НМР РТ","423570, РТ, г. Нижнекамс, ул. Мурадьяна, д. 18А",0,328,301,47,348,"аутсорсинг ","Доготовочное","\"АБК-Пэйммент\"",1660238322,null,5,3,3]
["МБОУ \"Гимназия №22\" НМР РТ","423570, РТ, г.Нижнекамск, ул. Менделеева, д.15А",308,93,609,17,626,"аутсорсинг ","Доготовочное","\"АБК-Пэйммент\"",1660238322,null,6,4,4]
["МБОУ \"Лицей-интернат №24\" НМР РТ","423577, Республика Татарстан, г. Нижнекамск, ул. Спортивная, 17Б",0,0,163,149,312,"аутсорсинг ","Доготовочное","\"АБК-Пэйммент\"",1660238322,null,6,5,5]
["МБОУ \"Гимназия №25\" НМР РТ","423578, РТ, г. Нижнекамск, пр. Шинников, д.60",0,626,733,30,763,"аутсорсинг ","Доготовочное","\"АБК-Пэйммент\"",1660238322,null,8,7,7]
["МБОУ \"СОШ № 26\" НМР РТ","423570, РТ, г.Нижнекамск, пр. Шинников 25а",0,232,246,59,305,"аутсорсинг ","Доготовочное","\"АБК-Пэйммент\"",1660238322,null,4,3,3]
["МБОУ \"СОШ№27\" НМР РТ","423584, РТ, г. Нижнекамск, ул.Менделеева, д.37А",0,365,627,21,648,"аутсорсинг ","Доготовочное","\"АБК-Пэйммент\"",1660238322,null,6,3,3]
["МБОУ \"СОШ №28\" НМР РТ","423570, РТ, г.Нижнекамс, ул. Мира, д. 45",0,277,301,15,316,"аутсорсинг ","Доготовочное","\"АБК-Пэйммент\"",1660238322,null,5,5,5]
["МБОУ \"СОШ №29\" НМР РТ","423570 РТ г.Нижнекамск, проспект Мира, д.79",0,532,806,86,892,"аутсорсинг ","Доготовочное","\"АБК-Пэйммент\"",1660238322,null,7,5,5]
["МБОУ \"Лицей № 31 имени А. А. Шаповалова\" НМР РТ","423570 РТ г.Нижнекамск, пр.Мира, д. 16",0,497,666,41,707,"аутсорсинг ","Доготовочное","\"АБК-Пэйммент\"",1660238322,null,7,5,5]
["МБОУ \"Гимназия №32\" НМР РТ","423570 РТ г.Нижнекамск, ул. Сююмбике,38                     ",0,581,817,44,861,"аутсорсинг ","Доготовочное","\"АБК-Пэйммент\"",1660238322,null,7,6,6]
["МБОУ \"СОШ №33\" НМР РТ","423585, Татарстан, г. Нижнекамск, пр. Химиков, д.13",312,155,754,42,796,"аутсорсинг ","Доготовочное","\"АБК-Пэйммент\"",1660238322,null,7,6,6]
["МБОУ \"Гимназия-интернат №34\" НМР РТ","423570, г.Нижнекамск, пр.Шинников, д 23А ",0,117,79,37,116,"аутсорсинг ","Доготовочное","\"АБК-Пэйммент\"",1660238322,null,5,5,5]
["МБОУ \"Лицей №35\" НМР РТ","423584, РТ, г.Нижнекамск, ул.Бызова 10Б",0,0,694,183,877,"аутсорсинг ","Доготовочное","\"АБК-Пэйммент\"",1660238322,null,5,3,3]
["МБОУ «СОШ №36» НМР РТ","423578, РТ, г. Нижнекамск, ул. 30 лет Победы, д.26",690,227,881,80,961,"аутсорсинг ","Доготовочное","\"АБК-Пэйммент\"",1660238322,null,9,6,6]
["МБОУ «Многопрофильный лицей №37» НМР РТ","423578, РТ, г. Нижнекамск, ул. Студенческая, д.18А",444,225,699,63,762,"аутсорсинг ","Доготовочное","\"АБК-Пэйммент\"",1660238322,null,7,6,6]
["МБОУ \"Лицей №38\" НМР РТ","423570, Нижнекамск, ул. Студенческая, зд. 32Г",798,235,980,52,1032,"аутсорсинг ","Доготовочное","\"АБК-Пэйммент\"",1660238322,null,9,6,6]
["МБОУ \"Адымнар - Нижнекамск\" НМР РТ","423570, Нижнекамск, пр.Строителей, д.66А",0,495,501,17,518,"аутсорсинг ","Доготовочное","\"АБК-Пэйммент\"",1660238322,null,7,5,5]
["МБОУ \"Гимназия №1\" НМР РТ","423577, г.Нижнекамск , ул.Гагарина 5В",0,207,198,10,208,"аутсорсинг ","Доготовочное","\"АБК-Пэйммент\"",1660238322,null,4,3,3]
["МБОУ \"Гимназия №2\" НМР РТ","423570 Нижнекамск ул. Баки Урманче зд.13",0,593,747,22,769,"аутсорсинг ","Доготовочное","\"АБК-Пэйммент\"",1660238322,null,7,6,6]
["МБОУ \"КПСОШ №1\" НМР РТ","423564, РТ, Нижнекамский район, пгт Камские Поляны, д. 1/29",0,291,406,51,457,"аутсорсинг ","Доготовочное","\"АБК-Пэйммент\"",1660238322,null,5,5,5]
["МБОУ \"КСОШ №2\" НМР РТ","423564 Нижнекамский район, пгт Камские Поляны, д. 2/22",0,234,374,22,396,"аутсорсинг ","Доготовочное","\"АБК-Пэйммент\"",1660238322,null,5,5,5]
["МБОУ \"Большеафанасовская СОШ\" НМР РТ","423551, РТ, Нижнекамский район, село Большое Афанасово, Молодежная ул., д.3",0,120,172,11,183,"аутсорсинг ","Сырьевое","\"АБК-Пэйммент\"",1660238322,null,4,4,4]
["МБОУ \"Красноключинская СОШ\" НМР РТ","423552, Нижнекамский р-н, пос. Красный Ключ, ул. Советская,д.17а",0,112,114,9,123,"аутсорсинг ","Сырьевое","\"АБК-Пэйммент\"",1660238322,null,3,2,2]
["МБОУ \"Сухаревская СОШ\" НМР РТ"," 423559, РТ, Нижнекамский район, Сухаревское СП, с. Сухарево, ул. Школьная, д. 1",0,62,78,7,85,"аутсорсинг ","Сырьевое","\"АБК-Пэйммент\"",1660238322,null,3,3,3]
["МБОУ \"Шереметьевская СОШ\" НМР РТ","423560,РТ,Нижнекамский район,с.Шереметьевка,ул.Октябрьская площадь,д.18",0,30,43,15,58,"аутсорсинг ","Сырьевое","\"АБК-Пэйммент\"",1660238322,null,2,2,2]
["МБОУ \"Шингальчинская ООШ\" НМР РТ","423554 РТ Нижнекамский район село Шингальчи, ул.Новая 15",0,58,46,2,48,"аутсорсинг ","Сырьевое","\"АБК-Пэйммент\"",1660238322,null,2,2,2]
["МБОУ \"Верхнеуратьминская ООШ\" НМР РТ","423568,РТ,Нижнекамский район,с.Верхняя уратьма,ул.Молодежная,д.2",0,15,19,1,20,"аутсорсинг ","Сырьевое","\"АБК-Пэйммент\"",1660238322,null,2,2,2]
["МБОУ \"Благодатновская СОШ\" НМР РТ","423596,РТ,Нижнекамский район,д.Благодатная,ул.Мира,д1, тел.: +7(855)-533-14-24",0,15,17,5,22,"аутсорсинг ","Сырьевое","\"АБК-Пэйммент\"",1660238322,null,2,2,2]
["МБОУ \"Каенлинская СОШ\" НМР РТ","423555, РТ, Нижнекамский район,с.Каенлы,ул.Школьная д.17",33,1,34,1,35,"аутсорсинг ","Сырьевое","\"АБК-Пэйммент\"",1660238322,null,2,2,2]
["МБОУ \"Старошешминская СОШ\" НМР РТ","423563,РТ,Нижнекамский район,с.Старошешминск,ул.Школьная,д.1",0,28,53,5,58,"аутсорсинг ","Сырьевое","\"АБК-Пэйммент\"",1660238322,null,2,2,2]
["МБОУ \"Верхнечелнинская СОШ \" НМР РТ","423558,РТ,Нижнекамский район с.Верхние Челны ул.Молодежная д.5",20,0,29,1,30,"аутсорсинг ","Сырьевое","\"АБК-Пэйммент\"",1660238322,null,2,2,2]
["МБОУ \"Елантовская ООШ\" НМР РТ","423597, Нижнекамский район, с. Елантово, ул. Школьная, д. 11",6,0,23,0,23,"аутсорсинг ","Сырьевое","\"АБК-Пэйммент\"",1660238322,null,2,2,2]
["МБОУ «ООШ п.Трудовой» НМР РТ","423565, РТ, Нижнекамский район, пос. Трудовой, ул. Школьная, д.10",6,1,23,3,26,"аутсорсинг ","Сырьевое","\"АБК-Пэйммент\"",1660238322,null,2,2,2]
["МБОУ \"Нижнеуратьминская СОШ\" НМР РТ","423567,РТ,Нижнекамский район,с.Нижняя Уратьма,ул.Школьная,д.1А",11,0,29,4,33,"аутсорсинг ","Сырьевое","\"АБК-Пэйммент\"",1660238322,null,2,2,2]
["МБОУ \"Простинская ООШ\" НМР РТ","423553, Республика Татарстан, Нижнекамский, с. Прости, ул. Школьная, д. 8",18,0,25,1,26,"аутсорсинг ","Сырьевое","\"АБК-Пэйммент\"",1660238322,null,2,2,2]
["МБОУ \"Кармалинская СОШ\" НМР РТ","423598, РТ, Нижнекамский район, село Кармалы,ул.Пролетарская,д.8",20,25,65,4,69,"аутсорсинг ","Сырьевое","\"АБК-Пэйммент\"",1660238322,null,3,3,3]
["МБОУ \"НШДС №71\" НМР РТ","423578, Татарстан, г. Нижнекамск, пр. Мира,21",0,56,0,0,0,"самостоятельная","доготовочная",{"$nulls":3},2,2,2]
["МАОУ \"Надежда\" НМР РТ","423570,г. Нижнекамск, ул.Баки Урманче, 35- 1 корпус; пр. Строителей, д. 58- 2 корпус",0,31,0,34,34,"самостоятельная ","Сырьевое",null,null,6,6,4,4,"дополнительно д/сад-25 детей      4- разовое питание"]
["ГБОУ «Нижнекамская школа №18»","423578, РТ, г. Нижнекамск, пр-кт. Химиков, д. 74а",0,54,0,75,75,"самостоятельно","сырьевое",null,null,3,3,3,2]
["ГБОУ «Нижнекамская школа №23»","Татарстан, г. Нижнекамск, ул 30 лет Победы 7а",0,49,0,72,72,"аутсорсинг","сырьевое","ООО \"ГРАНД\"",1611291098,4,4,4,4]
["ГБОУ \"Верхнечелнинская школа -интернат\"","423545,Республика Татарстан, Нижнекамский район, с. Красная Кадка, пер. Кооперативный, дом №11",0,26,0,38,38,"самостоятельно"]
["ГБОУ \"Нижнекамская школа- интернат\"","423570, Республика Татарстан, город Нижнекамск, ул. Спортивная, 20",0,15,0,30,30,"самостоятельно","сырьевые",null,null,5,5,5,5]
["ГБОУ \"Татарстанский кадетский корпус Приволжского федерального округа им. Героя Советского Союза Гани Сафиуллина\"","423570, Республика Татарстан, г. Нижнекамск, пр. Химиков, д. 41",0,0,0,244,244,"самостоятельно","доготовочные ","ООО \"Гранд\"",1611291098,"13","13,2","13,2","9"]

{"sheet":"Лист2","index":1,"n_rows":13,"n_cols":8,"rows_kept":13,"merged":[[0,0,0,7],[1,0,3,0],[1,1,3,1],[1,2,1,5],[1,6,3,6],[1,7,3,7],[2,2,3,2],[2,3,3,3],[2,4,3,4],[2,5,3,5]]}
["Горячее питание. Региональные и муниципальные льготы"]
["Наименование льготы (при отсутствии льготы в списке, нужно указать свою)","Реквизиты нормативного правового акта предоставления льготы (для федеральной льготы указать \"ФЛ\")","Тип льготы",{"$nulls":3},"Наличие льгот в муниципальных образованиях","Примечание"]
[null,null,"Завтрак","Обед","Денежная компенсация","Иное"]
[]
[1,2,3,4,5,6,7,8]
["Для обучающихся 1-4 классов"]
["Для обучающихся с ограниченными возможностями здоровья (ОВЗ)"]
["Для безнадзорных детей"]
["Для детей-сирот"]
["Для детей участников СВО"]
["Для детей, получающих пенсию по потере кормильца"]
["Для детей из многодетных семей"]
["Для детей из малоимущих семей"]

{"sheet":"Лист3","index":2,"n_rows":0,"n_cols":0,"rows_kept":0}